fUSD/lending_fUSD_20250120
["ID","MTS","AMOUNT","RATE_DAILY","PERIOD"]
[349739821,1737405040443,-1069.48451558,0.00012,2]
[349739822,1737405040457,-274.36543103,0.00012,2]
[349739823,1737405040468,-277.94864112,0.00012,2]
[349739824,1737405040480,-6378.4456749,0.00012,2]
[349739825,1737405040491,-4183.57406218,0.00012,2]
[349739826,1737405040503,-673.25,0.00012,2]
[349739827,1737405040523,-450.07,0.00012,2]
[349739828,1737405040785,-8412.95131927,0.00012,2]
[349739829,1737405040799,-51924.99999999,0.00012,2]
[349739830,1737405040812,-1179.325,0.00012,2]
[349739843,1737405043027,-2079.96803066,0.00012,2]
[349739844,1737405043227,-451.84936716,0.00012,2]
[349739845,1737405043240,-332.3,0.00012,2]
[349739846,1737405043252,-399.0464,0.00012,2]
[349739852,1737405046152,-518.992386,0.00012,2]
[349739853,1737405046212,-103730.00000004,0.00012,2]
[349739855,1737405408240,152.3,0.00010137,2]
[349739857,1737405896392,150.012105,0.00024,120]
[349739858,1737406096940,1152.15,0.00016658,30]
[349739886,1737406232237,-4866.25866959,0.00011798,2]
[349739887,1737406232247,-3000.0,0.0001188,2]
[349739888,1737406232257,-300.0,0.00011898,2]
[349739889,1737406232266,-225.40723956,0.00011899,2]
[349739890,1737406232275,-1000.0,0.00011999,2]
[349739891,1737406232284,-17405.66258081,0.00011999,2]
[349739892,1737406232293,-150.0,0.00011999,2]
[349739893,1737406232302,-15765.31774769,0.00012,2]
[349739894,1737406232314,-69845.16900627,0.00012,2]
[349739895,1737406232323,-164.22,0.00012968,2]
[349739896,1737406232335,-420.0,0.00013063,2]
[349739897,1737406232344,-255.0,0.00013079,2]
[349739898,1737406232354,-168.26,0.00013278,2]
[349739899,1737406232363,-433.0,0.00014255,2]
[349739900,1737406232373,-3000.0,0.0001438,2]
[349739901,1737406232382,-1618.93,0.0001477,2]
[349739902,1737406232393,-550.0,0.00015,2]
[349739903,1737406232402,-1080.53903908,0.000154,2]
[349739904,1737406232412,-736.0,0.00015539,2]
[349739905,1737406232421,-172.4,0.00016476,2]
[349739906,1737406232431,-5822.11061395,0.000165,2]
[349739907,1737406232441,-1000.0,0.00016522,2]
[349739908,1737406232451,-162.83,0.00016568,2]
[349739909,1737406232460,-4583.52079874,0.00016599,2]
[349739910,1737406232470,-1500.0,0.00016609,2]
[349739911,1737406232479,-23900.0,0.00016615,2]
[349739912,1737406232489,-250.0,0.00016619,2]
[349739913,1737406232498,-1808.76,0.00016621,2]
[349739914,1737406232508,-250.0,0.000167,2]
[349739915,1737406232517,-1893.61,0.00016705,2]
[349739916,1737406232526,-150.0,0.00016708,2]
[349739917,1737406232536,-2108.36,0.00016735,2]
[349739918,1737406232545,-250.0,0.00016778,2]
[349739919,1737406232554,-519.81,0.00016792,2]
[349739920,1737406232564,-3000.0,0.0001688,2]
[349739921,1737406232573,-381.0,0.00016943,2]
[349739922,1737406232583,-600.0,0.00017,2]
[349739923,1737406232592,-1618.93,0.00017034,2]
[349739924,1737406232602,-4583.5207987,0.00017077,2]
[349739925,1737406232612,-1000.0,0.00017196,2]
[349739926,1737406232621,-225.70039944,0.000172,2]
[349739927,1737406232631,-225.7003993,0.000172,2]
[349739928,1737406232641,-225.7003993,0.000172,2]
[349739929,1737406232651,-225.7003993,0.000172,2]
[349739930,1737406232660,-225.7003993,0.000172,2]
[349739931,1737406232670,-225.7003993,0.000172,2]
[349739932,1737406232679,-225.7003993,0.000172,2]
[349739933,1737406232689,-225.7003993,0.000172,2]
[349739934,1737406232698,-225.7003993,0.000172,2]
[349739935,1737406232708,-225.7003993,0.000172,2]
[349739936,1737406232717,-225.7003993,0.000172,2]
[349739937,1737406232725,-225.7003993,0.000172,2]
[349739938,1737406232735,-225.7003993,0.000172,2]
[349739939,1737406232745,-225.7003993,0.000172,2]
[349739940,1737406232754,-225.7003993,0.00017245,2]
[349739941,1737406232763,-2008.0,0.000174,2]
[349739942,1737406232773,-4583.5207987,0.00017555,2]
[349739943,1737406232783,-225.7003993,0.00017555,2]
[349739945,1737406232791,-225.7003993,0.00017866,2]
[349739947,1737406232801,-304.94,0.0001789,2]
[349739948,1737406232810,-150.0,0.0001789,2]
[349739949,1737406232819,-321.71,0.0001789,2]
[349739950,1737406232828,-150.0,0.0001789,2]
[349739951,1737406232837,-437.63,0.0001789,2]
[349739952,1737406232846,-437.63,0.0001789,2]
[349739953,1737406232856,-150.0,0.0001789,2]
[349739954,1737406232865,-150.0,0.0001789,2]
[349739955,1737406232874,-150.0,0.0001789,2]
[349739956,1737406232884,-150.0,0.0001789,2]
[349739957,1737406232893,-437.12,0.0001789,2]
[349739958,1737406232902,-726.69716372,0.00018,2]
[349739959,1737406232911,-5611.1091282,0.00018,2]
[349739960,1737406232924,-4583.5207987,0.00018033,2]
[349739961,1737406232933,-150.0,0.00018052,2]
[349739962,1737406232942,-437.63,0.00018052,2]
[349739963,1737406232951,-150.0,0.00018052,2]
[349739964,1737406232960,-150.0,0.00018052,2]
[349739965,1737406232971,-150.0,0.00018052,2]
[349739966,1737406232981,-437.63,0.00018052,2]
[349739967,1737406232991,-437.47,0.00018052,2]
[349739968,1737406233001,-437.63,0.00018056,2]
[349739969,1737406233010,-150.0,0.00018056,2]
[349739970,1737406233019,-150.0,0.00018056,2]
[349739971,1737406233029,-500.0,0.00018164,2]
[349739972,1737406233039,-225.7003993,0.00018176,2]
[349739973,1737406233048,-176.67,0.00018445,2]
[349739974,1737406233059,-299.35,0.00018456,2]
[349739975,1737406233068,-743.51,0.00018456,2]
[349739976,1737406233078,-275.44,0.00018456,2]
[349739977,1737406233087,-291.95,0.00018456,2]
[349739978,1737406233097,-225.7003993,0.00018486,2]
[349739979,1737406233108,-1000.0,0.00018504,2]
[349739980,1737406233118,-1055.244,0.00018519,2]
[349739981,1737406233128,-1000.0,0.00018587,2]
[349739982,1737406233138,-424.6865,0.00018774,2]
[349739983,1737406233148,-225.7003993,0.00018797,2]
[349739984,1737406233157,-882.0,0.00018841,2]
[349739985,1737406233166,-519.81,0.00018891,2]
[349739986,1737406233176,-16300.0,0.000189,10]
[349739987,1737406233186,-5000.0,0.000189,2]
[349739988,1737406233196,-27129.3167,0.000189,2]
[349739989,1737406233205,-15361.28236648,0.000189,2]
[349739990,1737406233215,-443.69401093,0.000189,2]
[349739991,1737406233224,-22091.54082366,0.00019,2]
[349739992,1737406233236,-104397.80913849,0.00019,2]
[349739993,1737406233246,-6616.0,0.00019,2]
[349739994,1737406233255,-650.0,0.00019,2]
[349739995,1737406233265,-225.7003993,0.00019107,2]
[349739996,1737406233274,-15361.28236647,0.00019122,2]
[349739997,1737406233283,-443.69401089,0.00019197,2]
[349739998,1737406233292,-172.4,0.00019222,2]
[349739999,1737406233301,-1152.15,0.00019242,30]
[349740000,1737406233310,-1618.93,0.00019298,2]
[349740001,1737406233319,-15361.28236647,0.00019344,2]
[349740002,1737406233328,-3000.0,0.0001938,2]
[349740003,1737406233337,-751.0,0.000194,3]
[349740004,1737406233346,-1000.0,0.000194,3]
[349740005,1737406233356,-1000.0,0.000194,2]
[349740006,1737406233366,-225.7003993,0.00019417,2]
[349740007,1737406233376,-164.22,0.00019452,2]
[349740008,1737406233385,-443.69401089,0.00019494,2]
[349740009,1737406233395,-15758.1237,0.00019523,2]
[349740010,1737406233405,-15361.28236647,0.00019567,2]
[349740011,1737406233415,-496.747323,0.00019623,2]
[349740012,1737406233425,-650.934421,0.00019623,2]
[349740013,1737406233435,-500.0,0.00019623,2]
[349740014,1737406233444,-500.0,0.00019623,2]
[349740015,1737406233454,-500.0,0.00019623,2]
[349740016,1737406233463,-500.0,0.00019623,2]
[349740017,1737406233472,-500.0,0.00019623,2]
[349740018,1737406233482,-500.0,0.00019623,2]
[349740019,1737406233492,-500.0,0.00019623,2]
[349740020,1737406233502,-500.0,0.00019623,2]
[349740021,1737406233512,-560.14010724,0.00019623,2]
[349740022,1737406233521,-500.0,0.00019623,2]
[349740023,1737406233530,-500.0,0.00019623,2]
[349740024,1737406233539,-500.0,0.00019623,2]
[349740025,1737406233548,-509.70414068,0.00019623,2]
[349740026,1737406233558,-434.46798295,0.00019623,2]
[349740027,1737406233569,-500.0,0.00019623,2]
[349740028,1737406233579,-500.0,0.00019623,2]
[349740029,1737406233589,-500.0,0.00019623,2]
[349740030,1737406233599,-500.0,0.00019623,2]
[349740031,1737406233608,-500.0,0.00019623,2]
[349740032,1737406233618,-500.0,0.00019623,2]
[349740033,1737406233627,-505.37895415,0.00019623,2]
[349740034,1737406233637,-500.0,0.00019623,2]
[349740035,1737406233646,-500.0,0.00019623,2]
[349740036,1737406233655,-500.0,0.00019623,2]
[349740037,1737406233665,-500.0,0.00019623,2]
[349740038,1737406233675,-505.78132252,0.00019623,2]
[349740039,1737406233685,-169.14021046,0.00019623,2]
[349740040,1737406233694,-500.0,0.00019623,2]
[349740041,1737406233704,-500.0,0.00019623,2]
[349740042,1737406233713,-500.0,0.00019623,2]
[349740043,1737406233723,-500.0,0.00019623,2]
[349740044,1737406233732,-500.0,0.00019623,2]
[349740045,1737406233743,-500.0,0.00019623,2]
[349740046,1737406233753,-500.0,0.00019623,2]
[349740047,1737406233764,-500.0,0.00019623,2]
[349740048,1737406233774,-500.0,0.00019623,2]
[349740049,1737406233784,-516.56849469,0.00019623,2]
[349740050,1737406233794,-500.0,0.00019623,2]
[349740051,1737406233803,-263.90560579,0.00019623,2]
[349740052,1737406233813,-500.0,0.00019623,2]
[349740053,1737406233822,-500.0,0.00019623,2]
[349740054,1737406233831,-245.49800396,0.00019623,2]
[349740055,1737406233841,-174.4555633,0.00019623,2]
[349740056,1737406233850,-556.32,0.00019623,2]
[349740057,1737406233859,-500.0,0.00019623,2]
[349740058,1737406233869,-500.0,0.00019623,2]
[349740059,1737406233878,-537.71,0.00019623,2]
[349740060,1737406233888,-500.0,0.00019623,2]
[349740061,1737406233897,-500.0,0.00019623,2]
[349740062,1737406233907,-500.0,0.00019623,2]
[349740063,1737406233917,-1108.56,0.00019623,2]
[349740064,1737406233931,-514.72,0.00019623,2]
[349740065,1737406233940,-500.0,0.00019623,2]
[349740066,1737406233950,-500.0,0.00019623,2]
[349740067,1737406233959,-500.0,0.00019623,2]
[349740068,1737406233970,-500.0,0.00019623,2]
[349740069,1737406233979,-500.0,0.00019623,2]
[349740070,1737406233989,-500.0,0.00019623,2]
[349740071,1737406233999,-500.0,0.00019623,2]
[349740072,1737406234009,-408.16933293,0.00019623,2]
[349740073,1737406234020,-500.0,0.00019623,2]
[349740074,1737406234030,-632.14,0.00019623,2]
[349740075,1737406234039,-500.0,0.00019623,2]
[349740076,1737406234049,-500.0,0.00019623,2]
[349740077,1737406234058,-241.55888075,0.00019623,2]
[349740078,1737406234068,-525.89286316,0.00019623,2]
[349740079,1737406234078,-500.0,0.00019623,2]
[349740080,1737406234087,-500.0,0.00019623,2]
[349740081,1737406234097,-500.0,0.00019623,2]
[349740082,1737406234108,-500.0,0.00019623,2]
[349740083,1737406234118,-500.0,0.00019623,2]
[349740084,1737406234128,-438.17784157,0.00019623,2]
[349740085,1737406234138,-652.0,0.00019623,2]
[349740086,1737406234148,-500.0,0.00019623,2]
[349740087,1737406234156,-555.72,0.00019623,2]
[349740088,1737406234166,-500.0,0.00019623,7]
[349740089,1737406234175,-500.0,0.00019623,2]
[349740090,1737406234185,-324.0183742,0.00019623,2]
[349740091,1737406234195,-500.0,0.00019623,2]
[349740092,1737406234206,-500.0,0.00019623,2]
[349740093,1737406234216,-500.0,0.00019623,2]
[349740094,1737406234226,-500.0,0.00019623,2]
[349740095,1737406234237,-500.0,0.00019623,2]
[349740096,1737406234246,-500.0,0.00019623,2]
[349740097,1737406234256,-500.0,0.00019623,2]
[349740098,1737406234266,-500.0,0.00019623,2]
[349740099,1737406234276,-500.0,0.00019623,2]
[349740100,1737406234285,-500.0,0.00019623,2]
[349740101,1737406234295,-500.0,0.00019623,2]
[349740102,1737406234304,-500.0,0.00019623,2]
[349740103,1737406234313,-500.0,0.00019623,2]
[349740104,1737406234322,-482.85358188,0.00019623,2]
[349740105,1737406234332,-500.0,0.00019623,2]
[349740106,1737406234342,-500.0,0.00019623,2]
[349740107,1737406234351,-500.0,0.00019623,2]
[349740108,1737406234361,-500.0,0.00019623,2]
[349740109,1737406234371,-500.0,0.00019623,2]
[349740110,1737406234382,-500.0,0.00019623,2]
[349740111,1737406234392,-500.0,0.00019623,2]
[349740112,1737406234402,-500.0,0.00019623,2]
[349740113,1737406234412,-500.0,0.00019623,2]
[349740114,1737406234422,-500.0,0.00019623,2]
[349740115,1737406234432,-500.0,0.00019623,2]
[349740116,1737406234441,-500.0,0.00019623,2]
[349740117,1737406234451,-500.0,0.00019623,2]
[349740118,1737406234462,-500.0,0.00019623,2]
[349740119,1737406234472,-500.0,0.00019623,2]
[349740120,1737406234481,-500.0,0.00019623,2]
[349740121,1737406234493,-500.0,0.00019623,2]
[349740122,1737406234503,-500.0,0.00019623,2]
[349740123,1737406234513,-500.0,0.00019623,2]
[349740124,1737406234523,-500.0,0.00019623,2]
[349740125,1737406234532,-500.0,0.00019623,2]
[349740126,1737406234541,-500.0,0.00019623,2]
[349740127,1737406234551,-500.0,0.00019623,2]
[349740128,1737406234561,-500.0,0.00019623,2]
[349740129,1737406234571,-631.05,0.00019623,2]
[349740130,1737406234581,-340.53602071,0.00019623,2]
[349740131,1737406234591,-500.0,0.00019623,2]
[349740132,1737406234725,-519.49911781,0.00019623,2]
[349740133,1737406234752,-500.0,0.00019623,2]
[349740134,1737406234762,-797.89,0.00019623,2]
[349740135,1737406234771,-500.0,0.00019623,2]
[349740136,1737406234780,-500.0,0.00019623,2]
[349740137,1737406234790,-562.29,0.00019623,2]
[349740138,1737406234799,-500.0,0.00019623,2]
[349740139,1737406234809,-745.7,0.00019623,2]
[349740140,1737406234819,-500.0,0.00019623,2]
[349740141,1737406234829,-500.0,0.00019623,2]
[349740142,1737406234839,-828.69,0.00019623,2]
[349740143,1737406234849,-500.0,0.00019623,2]
[349740144,1737406234858,-500.0,0.00019623,2]
[349740145,1737406234867,-500.0,0.00019623,2]
[349740146,1737406234876,-500.0,0.00019623,2]
[349740147,1737406234886,-500.0,0.00019623,2]
[349740148,1737406234896,-500.0,0.00019623,2]
[349740149,1737406234905,-500.0,0.00019623,2]
[349740150,1737406234915,-500.0,0.00019623,2]
[349740151,1737406234930,-500.0,0.00019623,2]
[349740152,1737406234939,-500.0,0.00019623,2]
[349740153,1737406234949,-670.85,0.00019623,2]
[349740154,1737406234959,-500.0,0.00019623,2]
[349740155,1737406234969,-500.0,0.00019623,2]
[349740156,1737406234979,-500.0,0.00019623,2]
[349740157,1737406234991,-500.0,0.00019623,2]
[349740158,1737406235001,-540.47742849,0.00019623,2]
[349740159,1737406235011,-500.0,0.00019623,2]
[349740160,1737406235021,-500.0,0.00019623,2]
[349740161,1737406235031,-500.0,0.00019623,2]
[349740162,1737406235040,-500.0,0.00019623,2]
[349740163,1737406235050,-500.0,0.00019623,2]
[349740164,1737406235059,-500.0,0.00019623,2]
[349740165,1737406235069,-500.0,0.00019623,2]
[349740166,1737406235079,-500.0,0.00019623,2]
[349740167,1737406235088,-500.0,0.00019623,2]
[349740168,1737406235098,-625.22,0.00019623,2]
[349740169,1737406235107,-500.0,0.00019623,2]
[349740170,1737406235116,-522.68027342,0.00019623,2]
[349740171,1737406235125,-500.0,0.00019623,2]
[349740172,1737406235135,-509.98219789,0.00019623,2]
[349740173,1737406235144,-500.0,0.00019623,2]
[349740174,1737406235154,-500.0,0.00019623,2]
[349740175,1737406235163,-500.0,0.00019623,2]
[349740176,1737406235172,-500.0,0.00019623,2]
[349740177,1737406235181,-500.0,0.00019623,2]
[349740178,1737406235190,-662.05,0.00019623,2]
[349740179,1737406235200,-500.0,0.00019623,2]
[349740180,1737406235209,-500.0,0.00019623,2]
[349740181,1737406235219,-500.0,0.00019623,2]
[349740182,1737406235229,-500.0,0.00019623,2]
[349740183,1737406235239,-500.0,0.00019623,2]
[349740184,1737406235248,-500.0,0.00019623,2]
[349740185,1737406235257,-500.0,0.00019623,2]
[349740186,1737406235267,-500.0,0.00019623,2]
[349740187,1737406235276,-500.0,0.00019623,2]
[349740188,1737406235285,-500.0,0.00019623,2]
[349740189,1737406235294,-208.50715105,0.00019623,2]
[349740190,1737406235303,-500.0,0.00019623,2]
[349740191,1737406235311,-743.42,0.00019623,2]
[349740192,1737406235320,-500.0,0.00019623,2]
[349740193,1737406235330,-500.0,0.00019623,2]
[349740194,1737406235339,-505.00070789,0.00019623,2]
[349740195,1737406235348,-611.01,0.00019623,2]
[349740196,1737406235357,-777.49,0.00019623,2]
[349740197,1737406235366,-500.0,0.00019623,2]
[349740198,1737406235374,-500.0,0.00019623,2]
[349740199,1737406235383,-500.0,0.00019623,2]
[349740200,1737406235393,-500.0,0.00019623,2]
[349740201,1737406235403,-500.0,0.00019623,2]
[349740202,1737406235411,-500.0,0.00019623,2]
[349740203,1737406235420,-500.0,0.00019623,2]
[349740204,1737406235429,-500.0,0.00019623,2]
[349740205,1737406235438,-500.0,0.00019623,2]
[349740206,1737406235447,-501.03545457,0.00019623,2]
[349740207,1737406235456,-500.0,0.00019623,2]
[349740208,1737406235465,-500.0,0.00019623,2]
[349740209,1737406235474,-500.0,0.00019623,2]
[349740210,1737406235483,-1309.98,0.00019623,2]
[349740211,1737406235492,-541.24732393,0.00019623,2]
[349740212,1737406235501,-414.91158538,0.00019623,2]
[349740213,1737406235509,-500.0,0.00019623,2]
[349740214,1737406235518,-511.25862332,0.00019623,2]
[349740215,1737406235527,-500.0,0.00019623,2]
[349740216,1737406235536,-557.01,0.00019623,2]
[349740217,1737406235545,-500.0,0.00019623,2]
[349740218,1737406235553,-500.0,0.00019623,2]
[349740219,1737406235562,-520.22723867,0.00019623,2]
[349740220,1737406235571,-500.0,0.00019623,2]
[349740221,1737406235580,-500.0,0.00019623,2]
[349740222,1737406235591,-500.0,0.00019623,2]
[349740223,1737406235600,-500.0,0.00019623,2]
[349740224,1737406235609,-500.0,0.00019623,2]
[349740225,1737406235618,-500.0,0.00019623,2]
[349740226,1737406235628,-500.0,0.00019623,2]
[349740227,1737406235637,-500.0,0.00019623,2]
[349740228,1737406235646,-500.0,0.00019623,2]
[349740229,1737406235656,-500.0,0.00019623,2]
[349740230,1737406235665,-500.0,0.00019623,2]
[349740231,1737406235674,-500.0,0.00019623,2]
[349740232,1737406235684,-639.51,0.00019623,2]
[349740233,1737406235694,-1931.6,0.00019623,2]
[349740234,1737406235703,-543.4,0.00019623,2]
[349740235,1737406235713,-577.94458256,0.00019623,2]
[349740236,1737406235722,-500.0,0.00019623,2]
[349740237,1737406235732,-500.0,0.00019623,2]
[349740238,1737406235742,-500.0,0.00019623,2]
[349740239,1737406235751,-2724.33,0.00019623,2]
[349740240,1737406235761,-500.0,0.00019623,2]
[349740241,1737406235770,-500.0,0.00019623,2]
[349740242,1737406235780,-500.0,0.00019623,2]
[349740243,1737406235789,-405.62680949,0.00019623,2]
[349740244,1737406235799,-528.03,0.00019623,2]
[349740245,1737406235808,-500.0,0.00019623,2]
[349740246,1737406235817,-533.73,0.00019623,2]
[349740247,1737406235827,-500.0,0.00019623,2]
[349740248,1737406235838,-897.01,0.00019623,2]
[349740249,1737406235850,-500.0,0.00019623,2]
[349740250,1737406235867,-284.79929659,0.00019623,2]
[349740251,1737406235883,-503.93658968,0.00019623,2]
[349740252,1737406235895,-500.0,0.00019623,2]
[349740253,1737406235910,-500.0,0.00019623,2]
[349740254,1737406235928,-500.0,0.00019623,2]
[349740255,1737406235943,-1702.86,0.00019623,2]
[349740256,1737406235958,-500.0,0.00019623,2]
[349740257,1737406235972,-500.0,0.00019623,2]
[349740258,1737406235985,-786.24,0.00019623,2]
[349740259,1737406235997,-563.44,0.00019623,2]
[349740260,1737406236012,-500.0,0.00019623,2]
[349740261,1737406236026,-500.0,0.00019623,2]
[349740262,1737406236040,-678.14,0.00019623,2]
[349740263,1737406236055,-500.0,0.00019623,2]
[349740264,1737406236069,-500.0,0.00019623,2]
[349740265,1737406236084,-783.31,0.00019623,2]
[349740266,1737406236097,-561.17,0.00019623,2]
[349740267,1737406236110,-500.0,0.00019623,2]
[349740268,1737406236123,-596.73,0.00019623,2]
[349740269,1737406236135,-863.28,0.00019623,2]
[349740270,1737406236150,-500.0,0.00019623,2]
[349740271,1737406236164,-500.0,0.00019623,2]
[349740272,1737406236177,-714.47,0.00019623,2]
[349740273,1737406236188,-500.0,0.00019623,2]
[349740274,1737406236199,-1174.15,0.00019623,2]
[349740275,1737406236215,-533.73,0.00019623,2]
[349740276,1737406236228,-500.0,0.00019623,2]
[349740277,1737406236239,-1320.75,0.00019623,2]
[349740278,1737406236250,-500.0,0.00019623,2]
[349740279,1737406236264,-782.15,0.00019623,2]
[349740280,1737406236278,-500.0,0.00019623,2]
[349740281,1737406236290,-500.0,0.00019623,2]
[349740282,1737406236300,-500.0,0.00019623,2]
[349740283,1737406236312,-1940.6,0.00019623,2]
[349740284,1737406236324,-1968.11,0.00019623,2]
[349740285,1737406236337,-500.0,0.00019623,2]
[349740286,1737406236349,-1110.84,0.00019623,2]
[349740287,1737406236361,-1168.63,0.00019623,2]
[349740288,1737406236373,-3549.35,0.00019623,2]
[349740289,1737406236385,-500.0,0.00019623,2]
[349740290,1737406236397,-760.59,0.00019623,2]
[349740291,1737406236410,-515.84,0.00019623,2]
[349740292,1737406236425,-500.0,0.00019623,2]
[349740293,1737406236438,-1699.77,0.00019623,2]
[349740294,1737406236449,-500.0,0.00019623,2]
[349740295,1737406236462,-578.09,0.00019623,2]
[349740296,1737406236474,-594.6,0.00019623,2]
[349740297,1737406236487,-500.0,0.00019623,2]
[349740298,1737406236500,-3874.15,0.00019623,2]
[349740299,1737406236513,-642.65936435,0.00019623,2]
[349740300,1737406236525,-1762.64,0.00019623,2]
[349740301,1737406236538,-500.0,0.00019623,2]
[349740302,1737406236551,-1482.32,0.00019623,2]
[349740303,1737406236563,-500.0,0.00019623,2]
[349740304,1737406236576,-500.0,0.00019623,2]
[349740305,1737406236588,-500.0,0.00019623,2]
[349740306,1737406236601,-748.8,0.00019623,2]
[349740307,1737406236615,-753.64,0.00019623,2]
[349740308,1737406236628,-527.13,0.00019623,2]
[349740309,1737406236640,-2082.53,0.00019623,2]
[349740310,1737406236652,-987.62,0.00019623,2]
[349740311,1737406236664,-2873.19,0.00019623,2]
[349740312,1737406236677,-586.96,0.00019623,2]
[349740313,1737406236689,-2147.85,0.00019623,2]
[349740314,1737406236703,-500.0,0.00019623,2]
[349740315,1737406236714,-908.55,0.00019623,2]
[349740316,1737406236727,-500.0,0.00019623,2]
[349740317,1737406236739,-500.0,0.00019623,2]
[349740318,1737406236754,-500.0,0.00019623,2]
[349740319,1737406236767,-1350.78,0.00019623,2]
[349740320,1737406236780,-500.0,0.00019623,2]
[349740321,1737406236791,-871.37,0.00019623,2]
[349740322,1737406236804,-578.5,0.00019623,2]
[349740323,1737406236816,-500.0,0.00019623,2]
[349740324,1737406236828,-1168.13,0.00019623,2]
[349740325,1737406236841,-544.33171686,0.00019623,2]
[349740326,1737406236853,-617.85,0.00019623,2]
[349740327,1737406236865,-1194.28,0.00019623,2]
[349740328,1737406236877,-500.0,0.00019623,2]
[349740329,1737406236889,-500.0,0.00019623,2]
[349740330,1737406236902,-500.0,0.00019623,2]
[349740331,1737406236913,-500.0,0.00019623,2]
[349740332,1737406236931,-1223.03,0.00019623,2]
[349740333,1737406236943,-500.0,0.00019623,2]
[349740334,1737406236956,-500.0,0.00019623,2]
[349740335,1737406236967,-784.19,0.00019623,2]
[349740336,1737406236979,-1922.43,0.00019623,2]
[349740337,1737406236993,-1589.83,0.00019623,2]
[349740338,1737406237006,-500.0,0.00019623,2]
[349740339,1737406237018,-3002.0,0.00019623,2]
[349740340,1737406237030,-500.0,0.00019623,2]
[349740341,1737406237043,-500.0,0.00019623,2]
[349740342,1737406237054,-546.45,0.00019623,2]
[349740343,1737406237066,-500.0,0.00019623,2]
[349740344,1737406237078,-1123.59,0.00019623,2]
[349740345,1737406237089,-2137.91,0.00019623,2]
[349740346,1737406237102,-626.83,0.00019623,2]
[349740347,1737406237114,-1172.8,0.00019623,2]
[349740348,1737406237126,-2762.3,0.00019623,2]
[349740349,1737406237137,-652.17,0.00019623,2]
[349740350,1737406237150,-500.0,0.00019623,2]
[349740351,1737406237161,-500.0,0.00019623,2]
[349740352,1737406237174,-500.0,0.00019623,2]
[349740353,1737406237186,-500.0,0.00019623,2]
[349740354,1737406237198,-1235.76,0.00019623,2]
[349740355,1737406237210,-668.74,0.00019623,2]
[349740356,1737406237223,-1009.89,0.00019623,2]
[349740357,1737406237234,-1226.99,0.00019623,2]
[349740358,1737406237245,-500.0,0.00019623,2]
[349740359,1737406237254,-500.0,0.00019623,2]
[349740360,1737406237263,-500.0,0.00019623,2]
[349740361,1737406237273,-567.76,0.00019623,2]
[349740362,1737406237283,-1596.14,0.00019623,2]
[349740363,1737406237292,-1768.71,0.00019623,2]
[349740364,1737406237527,-500.0,0.00019623,2]
[349740365,1737406237542,-1498.8,0.00019623,2]
[349740366,1737406237551,-500.0,0.00019623,2]
[349740367,1737406237560,-824.86,0.00019623,2]
[349740368,1737406237569,-500.0,0.00019623,2]